{"text_format":"2","workbook":"xlsx","n_sheets":3,"sheets":["Overzichtstabel","Risicorooster","Brand"],"not_rendered":{"charts":0,"images":0,"macros":0,"external_links":0,"defined_names":1,"comments":0,"pivot_tables":0},"unopened":[],"bounds":{"document_bytes":16777216,"sheet_cells":100000,"run_cost":"one","rows_first":2000,"rows_last":500,"rows_between":2000,"halvings":0,"cell_chars":16384,"cell_head_chars":4096},"cells_cut":0,"cells_raw":0,"read":"whole","date_system":"1900"}

{"sheet":"Overzichtstabel","index":0,"n_rows":14,"n_cols":11,"rows_kept":14,"cut":false,"hidden":false,"merged":[[0,0,0,10]]}
[]
[null,"Omschrijving","blootstelling","kans op voorkomen","intrinsieke beheersing","situationele factor","waarschijnlijkheid","impact","inherent risico","beheersmaatregel","residueel risico"]
["Tekort:",{"$nulls":5},{"$f":"((C3+D3)/2)*E3*F3","v":0},null,{"$f":"(G3+H3)/2","v":0}]
["Advies: ",{"$nulls":9},{"$f":"(5-J4+I3)/2","v":2.5}]
["Tekort:",{"$nulls":5},{"$f":"((C5+D5)/2)*E5*F5","v":0},null,{"$f":"(G5+H5)/2","v":0}]
["Advies: ",{"$nulls":9},{"$f":"(5-J6+I5)/2","v":2.5}]
["Tekort:",{"$nulls":5},{"$f":"((C7+D7)/2)*E7*F7","v":0},null,{"$f":"(G7+H7)/2","v":0}]
["Advies: ",{"$nulls":9},{"$f":"(5-J8+I7)/2","v":2.5}]
["Tekort:",{"$nulls":5},0,null,0]
["Advies: ",{"$nulls":9},2.5]
["Tekort:",{"$nulls":5},0,null,0]
["Advies: ",{"$nulls":9},2.5]
["Tekort:",{"$nulls":5},0,null,0]
["Advies: ",{"$nulls":9},2.5]

{"sheet":"Risicorooster","index":1,"n_rows":21,"n_cols":22,"rows_kept":21,"cut":false,"hidden":false,"merged":[[12,3,12,4],[2,0,2,1],[2,3,2,4],[2,6,2,7],[2,9,2,10],[12,0,12,1],[12,7,12,8],[8,16,9,16],[2,15,2,16],[20,7,20,9],[16,10,16,12],[17,10,17,12],[18,10,18,12],[19,10,19,12],[20,10,20,12],[14,7,14,8],[16,7,16,9],[17,7,17,9],[18,7,18,9],[19,7,19,9]]}
["Risicorooster AgSO IDPB"]
[]
["Blootstelling",null,null,"Kans op voorkomen",null,null,"Intrinsieke beheersing",null,null,"Situationele factor",null,null,"Waarschijnlijkheid",null,null,"Waarschijnlijkheid"]
["> 4 u./Dag",5,null,"1 X Week",7,null,"Geen of gebrekkige beheersing",1.2,null,"Verzwarend",1.2,null,{"$f":"((B9+E11)/2)*H7*K7","v":3.5},null,null,"Courant","> 6"]
["< 4 u./Dag",4,null,"1 X Maand",6,null,"Toepassen van algemene beheersmaatregelen",1,null,"Niet aanwezig",1,{"$nulls":4},"Verwacht","> 5"]
["Wekelijks",3,null,"> 1 X 6 Maand",5.5,null,"Voorbeeld van goede praktijk",0.8,null,"Risico minderend",0.8,{"$nulls":4},"Mogelijk","> 4"]
["Maandelijks",2,null,"1 X Jaar",4,null,null,1,null,null,1,{"$nulls":4},"Onwaarschijnlijk","> 3"]
["Jaarlijks",1,null,"1 X 5 Jaar",3.5,{"$nulls":7},3,null,null,"Zeldzaam","> 2"]
["B =",5,null,"1 X 10 Jaar",2,{"$nulls":11},"Impact",1,2,3,4,5]
[null,null,null,"1 X 25 Jaar",1,{"$nulls":12}," EHBO of      kort verlet ","Lang verlet","Irreversibel letsel","Overlijden enkeling","Overlijden meerdere"]
[null,null,null,"K =",2]
[]
["Impact",null,null,"Beheersmaatregel",null,null,"Inherent risico",{"$f":"(M4+B19)/2","v":3.25}]
["EHBO / kort verlet",1,null,"Te laag",1]
["Lang verlet",2,{"$nulls":4},"Residueel risico",{"$f":"(5-E19+H13)/2","v":1.625}]
["Irreversibel letsel",3,null,"Minimaal",3]
["Overlijden enkeling",4,{"$nulls":5},"RISICO",null,null,"Maatregel te nemen in tijd"]
["Overlijden meerdere",5,null,"Correct",5,null,null,"Kritisch > 4,5",null,null,"Onmiddellijk - max. 2 weken"]
[null,3,null,"BM =",5,null,null,"Hoog  > 3,5 ≤ 4,5",null,null," ≤ 3 Jaar",{"$nulls":8}," "]
[{"$nulls":7},"Medium > 3    ≤ 3,5",null,null,"> 3 jaar  ≤ 5 jaar"]
[{"$nulls":7},"Aanvaardbaar ≤ 3",null,null,"geen"]

{"sheet":"Brand","index":2,"n_rows":16,"n_cols":5,"rows_kept":16,"cut":false,"hidden":false,"merged":[[14,0,14,1],[15,0,15,1]]}
["Risico","Intrinsieke beheersing",null,"Situationele factor"]
["Brandveiligheid","Doorgangen niet steeds vrij","-","Hoogbouw","-"]
["Brandveiligheid","Blusmiddelen niet altijd bereikbaar","-","Middenhoog","/"]
["Brandveiligheid","Tekorten bij evacuatieoefening","-","Laagbouw","+"]
["Brandveiligheid","Brandwerende deuren zijn opgespied","-","Te hoge bezetting","-"]
["Brandveiligheid","Evacuatiescenario niet door iedereen gekend","-","Zelfredzaamheid","/"]
["Brandveiligheid","Verhoogde brandlast aanwezig","-","Nachtelijke bezetting","-"]
["Brandveiligheid","Brandbestrijdingsdienst aanwezig","+","Risico lokalen","-"]
["Brandveiligheid","Brandbestrijdingsdienst getraind","+","Locatie risico's (moeilijk bereikbaar)","-"]
["Brandveiligheid","Activiteiten met verhoogd brandrisico","-","Slaapklas","-"]
["Brandveiligheid","Geen keuring/controle technische installaties","-","Schoolmanifestatie","-"]
["Brandveiligheid","Melding/oproep hulpdiensten mogelijk","+","Rook/branddetectie aanwezig","+"]
[]
[]
["Kans indien niet risico instelling = 1",null,null," "]
["Kans indien risico instelling = 3,5 gebruik van (L)OP in leerplan              gebruik open vlam"]